[Event "Kvibergspelen 2022"]
[Site "Kviberg Park Hotel & Conference, Krutvagen 2, Gothenburg, Sweden"]
[Date "2022.09.30"]
[Round "2.17"]
[White "Morell, Ludvig"]
[Black "Nygren, David"]
[Result "1/2-1/2"]
[TimeControl "15 minutes + 5 seconds per move from move one (Round 1 - 4) / 90 minutes + 30 seconds per move from move one (Round 5 - 8)"]
[WhiteFideId "1736779"]
[BlackFideId "1704761"]
[WhiteElo "1846"]
[BlackElo "2165"]

1. e4 {[%clk 00:15:08]} {[%emt 00:00:01]} c5 {[%clk 00:15:08]} {[%emt
00:00:02]} 2. Nf3 {[%clk 00:15:11]} {[%emt 00:00:02]} Nc6 {[%clk 00:15:07]}
{[%emt 00:00:06]} 3. d4 {[%clk 00:15:15]} {[%emt 00:00:01]} cxd4 {[%clk
00:15:07]} {[%emt 00:00:06]} 4. Nxd4 {[%clk 00:15:17]} {[%emt 00:00:02]} e5
{[%clk 00:15:08]} {[%emt 00:00:05]} 5. Nb5 {[%clk 00:15:19]} {[%emt 00:00:02]}
d6 {[%clk 00:15:03]} {[%emt 00:00:10]} 6. N1c3 {[%clk 00:15:22]} {[%emt
00:00:02]} a6 {[%clk 00:15:00]} {[%emt 00:00:08]} 7. Na3 {[%clk 00:15:25]}
{[%emt 00:00:02]} b5 {[%clk 00:14:57]} {[%emt 00:00:07]} 8. Nd5 {[%clk
00:15:28]} {[%emt 00:00:02]} Nge7 {[%clk 00:14:44]} {[%emt 00:00:19]} 9. c4
{[%clk 00:14:50]} {[%emt 00:00:43]} Nd4 {[%clk 00:14:28]} {[%emt 00:00:21]} 10.
cxb5 {[%clk 00:14:17]} {[%emt 00:00:38]} Nxd5 {[%clk 00:14:15]} {[%emt
00:00:17]} 11. exd5 {[%clk 00:14:20]} {[%emt 00:00:01]} g6 {[%clk 00:13:49]}
{[%emt 00:00:32]} 12. Be3 {[%clk 00:14:14]} {[%emt 00:00:12]} Nf5 {[%clk
00:13:38]} {[%emt 00:00:15]} 13. bxa6 {[%clk 00:13:27]} {[%emt 00:00:52]} Nxe3
{[%clk 00:12:50]} {[%emt 00:00:53]} 14. fxe3 {[%clk 00:13:23]} {[%emt
00:00:09]} Bh6 {[%clk 00:11:14]} {[%emt 00:01:41]} 15. Bb5+ {[%clk 00:13:03]}
{[%emt 00:00:24]} Kf8 {[%clk 00:10:57]} {[%emt 00:00:23]} 16. O-O {[%clk
00:11:20]} {[%emt 00:01:47]} Bxa6 {[%clk 00:08:58]} {[%emt 00:02:06]} 17. Bxa6
{[%clk 00:10:50]} {[%emt 00:00:35]} Rxa6 {[%clk 00:08:45]} {[%emt 00:00:18]} 18.
Qf3 {[%clk 00:10:51]} {[%emt 00:00:03]} Ra7 {[%clk 00:07:13]} {[%emt 00:01:37]}
19. Nc4 {[%clk 00:09:34]} {[%emt 00:01:21]} Kg7 {[%clk 00:06:59]} {[%emt
00:00:20]} 20. b3 {[%clk 00:08:23]} {[%emt 00:01:17]} f5 {[%clk 00:06:04]}
{[%emt 00:01:00]} 21. e4 {[%clk 00:08:04]} {[%emt 00:00:24]} Rf8 {[%clk
00:05:48]} {[%emt 00:00:21]} 22. exf5 {[%clk 00:07:08]} {[%emt 00:01:02]} Rxf5
{[%clk 00:05:43]} {[%emt 00:00:09]} 23. Qe4 {[%clk 00:06:34]} {[%emt 00:00:39]}
Raf7 {[%clk 00:05:35]} {[%emt 00:00:14]} 24. Rxf5 {[%clk 00:06:37]} {[%emt
00:00:02]} gxf5 {[%clk 00:05:37]} {[%emt 00:00:03]} 25. Qd3 {[%clk 00:06:09]}
{[%emt 00:00:33]} Kh8 {[%clk 00:05:27]} {[%emt 00:00:16]} 26. Rf1 {[%clk
00:06:08]} {[%emt 00:00:06]} e4 {[%clk 00:05:22]} {[%emt 00:00:11]} 27. Qh3
{[%clk 00:04:46]} {[%emt 00:01:26]} Qf6 {[%clk 00:04:57]} {[%emt 00:00:30]} 28.
Ne3 {[%clk 00:04:22]} {[%emt 00:00:29]} f4 {[%clk 00:04:21]} {[%emt 00:00:41]}
29. Ng4 {[%clk 00:04:22]} {[%emt 00:00:04]} Qd4+ {[%clk 00:04:25]} {[%emt
00:00:01]} 30. Kh1 {[%clk 00:03:05]} {[%emt 00:01:22]} Bg7 {[%clk 00:04:29]}
{[%emt 00:00:02]} 31. Nh6 {[%clk 00:02:46]} {[%emt 00:00:24]} Rf8 {[%clk
00:04:05]} {[%emt 00:00:29]} 32. Qe6 {[%clk 00:02:23]} {[%emt 00:00:27]} Qf6
{[%clk 00:03:28]} {[%emt 00:00:42]} 33. Qxf6 {[%clk 00:01:50]} {[%emt
00:00:39]} Rxf6 {[%clk 00:03:32]} {[%emt 00:00:01]} 34. Ng4 {[%clk 00:01:50]}
{[%emt 00:00:04]} Rf5 {[%clk 00:03:35]} {[%emt 00:00:02]} 35. h3 {[%clk
00:01:32]} {[%emt 00:00:23]} h5 {[%clk 00:03:22]} {[%emt 00:00:19]} 36. Nh2
{[%clk 00:00:52]} {[%emt 00:00:44]} Bh6 {[%clk 00:03:06]} {[%emt 00:00:22]} 37.
Rd1 {[%clk 00:00:53]} {[%emt 00:00:04]} e3 {[%clk 00:02:53]} {[%emt 00:00:18]}
38. Nf3 {[%clk 00:00:40]} {[%emt 00:00:17]} Bg7 {[%clk 00:02:50]} {[%emt
00:00:08]} 39. Kg1 {[%clk 00:00:13]} {[%emt 00:00:32]} Bc3 {[%clk 00:02:44]}
{[%emt 00:00:11]} 40. Kf1 {[%clk 00:00:17]} {[%emt 00:00:01]} Rf7 {[%clk
00:02:40]} {[%emt 00:00:09]} 41. Ke2 {[%clk 00:00:16]} {[%emt 00:00:06]} Ra7
{[%clk 00:02:43]} {[%emt 00:00:02]} 42. a4 {[%clk 00:00:19]} {[%emt 00:00:01]}
Bb4 {[%clk 00:02:32]} {[%emt 00:00:17]} 43. Rd4 {[%clk 00:00:19]} {[%emt
00:00:05]} Bc5 {[%clk 00:02:28]} {[%emt 00:00:09]} 44. Rxf4 {[%clk 00:00:22]}
{[%emt 00:00:02]} Rb7 {[%clk 00:02:32]} {[%emt 00:00:01]} 45. b4 {[%clk
00:00:21]} {[%emt 00:00:06]} Bxb4 {[%clk 00:02:24]} {[%emt 00:00:13]} 46. Kxe3
{[%clk 00:00:24]} {[%emt 00:00:02]} Ba3 {[%clk 00:02:17]} {[%emt 00:00:12]} 47.
Ke2 {[%clk 00:00:18]} {[%emt 00:00:11]} Rb2+ {[%clk 00:02:16]} {[%emt
00:00:06]} 48. Kf1 {[%clk 00:00:20]} {[%emt 00:00:02]} Bc5 {[%clk 00:02:17]}
{[%emt 00:00:04]} 49. Ne1 {[%clk 00:00:13]} {[%emt 00:00:13]} Rb1 {[%clk
00:02:05]} {[%emt 00:00:17]} 50. Ke2 {[%clk 00:00:15]} {[%emt 00:00:02]} Rb2+
{[%clk 00:02:06]} {[%emt 00:00:04]} 51. Kf3 {[%clk 00:00:12]} {[%emt 00:00:08]}
Rd2 {[%clk 00:01:35]} {[%emt 00:00:37]} 52. Re4 {[%clk 00:00:08]} {[%emt
00:00:08]} Rxd5 {[%clk 00:01:30]} {[%emt 00:00:10]} 53. Nc2 {[%clk 00:00:09]}
{[%emt 00:00:04]} Rd2 {[%clk 00:01:30]} {[%emt 00:00:06]} 54. Ne3 {[%clk
00:00:13]} {[%emt 00:00:02]} 1/2-1/2

[Event "Kvibergspelen 2022"]
[Site "Kviberg Park Hotel & Conference, Krutvagen 2, Gothenburg, Sweden"]
[Date "2022.09.30"]
[Round "2.18"]
[White "Kvarby, Anders"]
[Black "Johannsson, Birkir Isak"]
[Result "0-1"]
[TimeControl "15 minutes + 5 seconds per move from move one (Round 1 - 4) / 90 minutes + 30 seconds per move from move one (Round 5 - 8)"]
[WhiteFideId "1746596"]
[BlackFideId "2314673"]
[WhiteElo "1835"]
[BlackElo "2165"]

1. d4 {[%clk 00:15:08]} {[%emt 00:00:01]} d5 {[%clk 00:15:08]} {[%emt
00:00:03]} 2. Bf4 {[%clk 00:15:10]} {[%emt 00:00:02]} c5 {[%clk 00:15:11]}
{[%emt 00:00:02]} 3. e3 {[%clk 00:15:03]} {[%emt 00:00:13]} Nc6 {[%clk
00:15:14]} {[%emt 00:00:02]} 4. Nf3 {[%clk 00:15:00]} {[%emt 00:00:08]} Nf6
{[%clk 00:15:16]} {[%emt 00:00:03]} 5. Nc3 {[%clk 00:14:20]} {[%emt 00:00:44]}
Bg4 {[%clk 00:15:10]} {[%emt 00:00:10]} 6. Be2 {[%clk 00:13:37]} {[%emt
00:00:49]} e6 {[%clk 00:14:57]} {[%emt 00:00:19]} 7. h3 {[%clk 00:13:31]}
{[%emt 00:00:10]} Bxf3 {[%clk 00:13:38]} {[%emt 00:01:23]} 8. Bxf3 {[%clk
00:13:33]} {[%emt 00:00:03]} cxd4 {[%clk 00:13:31]} {[%emt 00:00:13]} 9. exd4
{[%clk 00:12:52]} {[%emt 00:00:46]} Qb6 {[%clk 00:12:53]} {[%emt 00:00:44]} 10.
Ne2 {[%clk 00:12:28]} {[%emt 00:00:29]} Qxb2 {[%clk 00:10:34]} {[%emt
00:02:24]} 11. O-O {[%clk 00:11:32]} {[%emt 00:01:01]} Be7 {[%clk 00:10:16]}
{[%emt 00:00:23]} 12. Rb1 {[%clk 00:11:16]} {[%emt 00:00:21]} Qxa2 {[%clk
00:09:41]} {[%emt 00:00:40]} 13. Rxb7 {[%clk 00:10:58]} {[%emt 00:00:23]} O-O
{[%clk 00:09:24]} {[%emt 00:00:22]} 14. Qd3 {[%clk 00:09:07]} {[%emt 00:01:55]}
Rfc8 {[%clk 00:08:52]} {[%emt 00:00:37]} 15. Nc3 {[%clk 00:08:09]} {[%emt
00:01:03]} Qa5 {[%clk 00:08:00]} {[%emt 00:00:56]} 16. Nb5 {[%clk 00:05:15]}
{[%emt 00:03:00]} Qa6 {[%clk 00:07:00]} {[%emt 00:01:05]} 17. Nd6 {[%clk
00:05:03]} {[%emt 00:00:17]} Qxd3 {[%clk 00:06:47]} {[%emt 00:00:18]} 18. cxd3
{[%clk 00:05:06]} {[%emt 00:00:01]} Bxd6 {[%clk 00:06:32]} {[%emt 00:00:20]} 19.
Bxd6 {[%clk 00:05:09]} {[%emt 00:00:02]} Nxd4 {[%clk 00:06:30]} {[%emt
00:00:07]} 20. Bd1 {[%clk 00:04:48]} {[%emt 00:00:26]} Ne8 {[%clk 00:04:02]}
{[%emt 00:02:33]} 21. Bh2 {[%clk 00:04:10]} {[%emt 00:00:41]} a5 {[%clk
00:03:25]} {[%emt 00:00:45]} 22. Ba4 {[%clk 00:04:04]} {[%emt 00:00:10]} h6
{[%clk 00:02:58]} {[%emt 00:00:32]} 23. Rfb1 {[%clk 00:03:04]} {[%emt
00:01:04]} Nc6 {[%clk 00:02:16]} {[%emt 00:00:49]} 24. g4 {[%clk 00:02:09]}
{[%emt 00:00:59]} Nb4 {[%clk 00:02:20]} {[%emt 00:00:02]} 25. d4 {[%clk
00:01:53]} {[%emt 00:00:20]} Nf6 {[%clk 00:01:58]} {[%emt 00:00:27]} 26. Bd6
{[%clk 00:01:39]} {[%emt 00:00:20]} Ne4 {[%clk 00:01:34]} {[%emt 00:00:30]} 27.
Bxb4 {[%clk 00:01:20]} {[%emt 00:00:23]} axb4 {[%clk 00:01:37]} {[%emt
00:00:02]} 28. R1xb4 {[%clk 00:01:14]} {[%emt 00:00:11]} Rc1+ {[%clk 00:01:13]}
{[%emt 00:00:29]} 29. Kg2 {[%clk 00:01:11]} {[%emt 00:00:06]} Ra1 {[%clk
00:01:15]} {[%emt 00:00:04]} 30. Rb8+ {[%clk 00:00:59]} {[%emt 00:00:17]} Rxb8
{[%clk 00:01:19]} {[%emt 00:00:02]} 31. Rxb8+ {[%clk 00:01:03]} Kh7 {[%clk
00:01:24]} 32. Be8 {[%clk 00:01:01]} {[%emt 00:00:07]} Ra2 {[%emt 00:00:33]}
0-1

[Event "Kvibergspelen 2022"]
[Site "Kviberg Park Hotel & Conference, Krutvagen 2, Gothenburg, Sweden"]
[Date "2022.09.30"]
[Round "2.19"]
[White "Degerfeldt, Sven"]
[Black "Bohman Karlholm, Adrian"]
[Result "0-1"]
[TimeControl "15 minutes + 5 seconds per move from move one (Round 1 - 4) / 90 minutes + 30 seconds per move from move one (Round 5 - 8)"]
[WhiteFideId "1717430"]
[BlackFideId "1720643"]
[WhiteElo "1830"]
[BlackElo "2117"]

1. Nf3 {[%clk 00:15:06]} {[%emt 00:00:03]} d5 {[%clk 00:15:08]} {[%emt
00:00:03]} 2. e3 {[%clk 00:15:09]} {[%emt 00:00:02]} c5 {[%clk 00:15:05]}
{[%emt 00:00:09]} 3. d4 {[%clk 00:15:12]} {[%emt 00:00:02]} e6 {[%clk
00:15:04]} {[%emt 00:00:06]} 4. dxc5 {[%clk 00:15:12]} {[%emt 00:00:05]} Bxc5
{[%clk 00:15:05]} {[%emt 00:00:03]} 5. a3 {[%clk 00:15:15]} {[%emt 00:00:02]}
Nc6 {[%clk 00:14:32]} {[%emt 00:00:38]} 6. c4 {[%clk 00:15:14]} {[%emt
00:00:06]} a5 {[%clk 00:13:47]} {[%emt 00:00:51]} 7. cxd5 {[%clk 00:15:08]}
{[%emt 00:00:10]} exd5 {[%clk 00:13:46]} {[%emt 00:00:05]} 8. Nc3 {[%clk
00:15:06]} {[%emt 00:00:07]} Nf6 {[%clk 00:13:47]} {[%emt 00:00:05]} 9. Be2
{[%clk 00:14:21]} {[%emt 00:00:50]} O-O {[%clk 00:13:45]} {[%emt 00:00:07]} 10.
O-O {[%clk 00:14:22]} {[%emt 00:00:04]} Bg4 {[%clk 00:13:19]} {[%emt 00:00:30]}
11. h3 {[%clk 00:14:21]} Bh5 {[%clk 00:13:07]} {[%emt 00:00:24]} 12. Nb5 {[%clk
00:14:18]} Re8 {[%clk 00:12:33]} {[%emt 00:00:47]} 13. Qc2 {[%clk 00:11:19]}
Bb6 {[%clk 00:11:07]} {[%emt 00:04:35]} 14. b3 {[%clk 00:10:51]} Rc8 {[%clk
00:11:03]} {[%emt 00:00:42]} 15. Qb2 {[%emt 00:02:24]} Ne4 16. Rd1 {[%clk
00:09:00]} {[%emt 00:01:04]} Qd7 {[%clk 00:09:33]} {[%emt 00:00:13]} 17. Bd2
{[%clk 00:08:38]} {[%emt 00:00:26]} Bd8 {[%clk 00:09:14]} {[%emt 00:00:25]} 18.
Rac1 {[%clk 00:08:31]} {[%emt 00:00:12]} Bf6 {[%clk 00:09:08]} {[%emt
00:00:10]} 19. Qb1 {[%clk 00:08:17]} {[%emt 00:00:19]} Qe7 {[%clk 00:08:42]}
{[%emt 00:00:32]} 20. Be1 {[%clk 00:07:59]} {[%emt 00:00:22]} Red8 {[%clk
00:08:31]} {[%emt 00:00:17]} 21. Qa2 {[%clk 00:05:56]} {[%emt 00:02:07]} h6
{[%clk 00:08:05]} {[%emt 00:00:30]} 22. b4 {[%clk 00:05:10]} {[%emt 00:00:52]}
axb4 {[%clk 00:07:44]} {[%emt 00:00:26]} 23. Rxd5 {[%clk 00:04:47]} {[%emt
00:00:28]} Bg6 {[%clk 00:06:38]} {[%emt 00:01:11]} 24. Rcd1 {[%clk 00:03:31]}
{[%emt 00:01:21]} Nc3 {[%clk 00:05:51]} {[%emt 00:00:52]} 25. Bxc3 {[%clk
00:02:59]} {[%emt 00:00:37]} bxc3 {[%clk 00:05:53]} {[%emt 00:00:03]} 26. Rxd8+
{[%clk 00:02:42]} {[%emt 00:00:22]} Rxd8 {[%clk 00:05:56]} {[%emt 00:00:02]} 27.
Rxd8+ {[%clk 00:02:42]} {[%emt 00:00:05]} Qxd8 {[%clk 00:05:58]} {[%emt
00:00:02]} 28. Ne1 {[%clk 00:02:20]} {[%emt 00:00:26]} Qd2 {[%clk 00:04:51]}
{[%emt 00:01:13]} 0-1

[Event "Kvibergspelen 2022"]
[Site "Kviberg Park Hotel & Conference, Krutvagen 2, Gothenburg, Sweden"]
[Date "2022.09.30"]
[Round "3.1"]
[White "Johannsson, Birkir Isak"]
[Black "Agdestein, Simen"]
[Result "1-0"]
[TimeControl "15 minutes + 5 seconds per move from move one (Round 1 - 4) / 90 minutes + 30 seconds per move from move one (Round 5 - 8)"]
[BlackTitle "GM"]
[WhiteFideId "2314673"]
[BlackFideId "1500015"]
[WhiteElo "2165"]
[BlackElo "2576"]

1. c4 {[%clk 00:15:06]} {[%emt 00:00:03]} e5 {[%clk 00:15:08]} {[%emt
00:00:02]} 2. Nc3 {[%clk 00:15:09]} {[%emt 00:00:02]} Nf6 {[%clk 00:15:12]}
{[%emt 00:00:01]} 3. Nf3 {[%clk 00:15:12]} {[%emt 00:00:03]} e4 {[%clk
00:15:16]} {[%emt 00:00:01]} 4. Ng5 {[%clk 00:15:14]} {[%emt 00:00:03]} c6
{[%clk 00:15:20]} {[%emt 00:00:01]} 5. Qa4 {[%clk 00:15:12]} {[%emt 00:00:07]}
b5 {[%clk 00:14:30]} {[%emt 00:00:54]} 6. cxb5 {[%clk 00:14:55]} {[%emt
00:00:22]} d5 {[%clk 00:14:08]} {[%emt 00:00:27]} 7. bxc6 {[%clk 00:14:45]}
{[%emt 00:00:16]} Qb6 {[%clk 00:13:58]} {[%emt 00:00:15]} 8. e3 {[%clk
00:12:47]} {[%emt 00:02:03]} Nxc6 {[%clk 00:09:25]} {[%emt 00:04:38]} 9. Bb5
{[%clk 00:11:30]} {[%emt 00:01:22]} Bd7 {[%clk 00:07:46]} {[%emt 00:01:44]} 10.
Nxd5 {[%clk 00:11:04]} {[%emt 00:00:30]} Nxd5 {[%clk 00:07:24]} {[%emt
00:00:27]} 11. Qxe4+ {[%clk 00:11:01]} {[%emt 00:00:08]} Nde7 {[%clk 00:06:28]}
{[%emt 00:01:01]} 12. Bc4 {[%clk 00:10:54]} {[%emt 00:00:13]} f5 {[%clk
00:04:51]} {[%emt 00:01:42]} 13. Bf7+ {[%clk 00:10:16]} {[%emt 00:00:44]} Kd8
{[%clk 00:04:55]} {[%emt 00:00:01]} 14. Qf3 {[%clk 00:09:23]} {[%emt 00:00:57]}
Rc8 {[%clk 00:04:05]} {[%emt 00:00:55]} 15. O-O {[%clk 00:08:41]} {[%emt
00:00:46]} h6 {[%clk 00:03:59]} {[%emt 00:00:10]} 16. Qh5 {[%clk 00:07:08]}
{[%emt 00:01:38]} Ne5 {[%clk 00:03:28]} {[%emt 00:00:37]} 17. Bb3 {[%clk
00:05:37]} {[%emt 00:01:36]} g6 {[%clk 00:03:23]} {[%emt 00:00:09]} 18. Qh4
{[%clk 00:05:18]} {[%emt 00:00:25]} Bg7 {[%clk 00:03:15]} {[%emt 00:00:13]} 19.
Nf7+ {[%clk 00:04:42]} {[%emt 00:00:41]} Nxf7 {[%clk 00:03:18]} {[%emt
00:00:02]} 20. Bxf7 {[%clk 00:04:46]} {[%emt 00:00:01]} g5 {[%clk 00:02:28]}
{[%emt 00:00:56]} 21. Qh5 {[%clk 00:04:42]} {[%emt 00:00:08]} Be6 {[%clk
00:01:54]} {[%emt 00:00:38]} 22. d4 {[%clk 00:04:28]} {[%emt 00:00:20]} Rf8
{[%clk 00:01:31]} {[%emt 00:00:28]} 23. Bxe6 {[%clk 00:04:28]} {[%emt
00:00:06]} Qxe6 {[%clk 00:01:35]} 24. Bd2 {[%clk 00:04:31]} {[%emt 00:00:02]}
Nd5 {[%clk 00:01:32]} {[%emt 00:00:09]} 25. Ba5+ {[%clk 00:04:31]} {[%emt
00:00:04]} Kd7 {[%clk 00:01:35]} {[%emt 00:00:02]} 26. Qe2 {[%clk 00:04:25]}
{[%emt 00:00:11]} Qc6 {[%clk 00:01:25]} {[%emt 00:00:15]} 27. Rfd1 {[%clk
00:03:52]} {[%emt 00:00:38]} Qc4 {[%clk 00:01:20]} {[%emt 00:00:10]} 28. Qd2
{[%clk 00:03:35]} {[%emt 00:00:22]} Qc2 {[%clk 00:01:12]} {[%emt 00:00:13]} 29.
Qe1 {[%clk 00:03:39]} Qa4 {[%clk 00:00:55]} {[%emt 00:00:23]} 30. Bd2 {[%clk
00:02:26]} {[%emt 00:01:17]} Qb5 {[%clk 00:00:51]} {[%emt 00:00:08]} 31. Rdc1
{[%clk 00:02:05]} {[%emt 00:00:27]} Rxc1 {[%clk 00:00:44]} {[%emt 00:00:12]} 32.
Rxc1 {[%clk 00:02:08]} {[%emt 00:00:02]} Rc8 {[%clk 00:00:48]} 33. e4 {[%clk
00:01:46]} {[%emt 00:00:26]} Rxc1 {[%clk 00:00:43]} {[%emt 00:00:11]} 34. Bxc1
{[%clk 00:01:44]} {[%emt 00:00:07]} fxe4 {[%clk 00:00:40]} {[%emt 00:00:08]} 35.
Qxe4 {[%clk 00:01:42]} {[%emt 00:00:07]} Qc4 {[%clk 00:00:19]} {[%emt
00:00:26]} 36. Bd2 {[%clk 00:01:01]} {[%emt 00:00:46]} Qxd4 {[%clk 00:00:19]}
{[%emt 00:00:05]} 37. Qf5+ {[%clk 00:01:03]} {[%emt 00:00:03]} Ke7 {[%clk
00:00:20]} {[%emt 00:00:04]} 38. Be1 {[%clk 00:00:27]} {[%emt 00:00:41]} Qe5
{[%clk 00:00:24]} 39. Qxe5+ {[%clk 00:00:21]} {[%emt 00:00:10]} Bxe5 {[%clk
00:00:28]} {[%emt 00:00:01]} 40. b3 {[%clk 00:00:21]} {[%emt 00:00:05]} Nc3
{[%clk 00:00:13]} {[%emt 00:00:21]} 41. a4 {[%clk 00:00:25]} Kd6 {[%clk
00:00:15]} {[%emt 00:00:03]} 42. g3 {[%clk 00:00:28]} {[%emt 00:00:02]} Kc5
{[%clk 00:00:17]} {[%emt 00:00:04]} 43. f4 {[%clk 00:00:27]} {[%emt 00:00:06]}
gxf4 {[%clk 00:00:20]} 44. gxf4 {[%clk 00:00:19]} {[%emt 00:00:13]} Ne2+ {[%clk
00:00:21]} {[%emt 00:00:04]} 45. Kf2 {[%clk 00:00:22]} {[%emt 00:00:02]} Nxf4
{[%clk 00:00:25]} 46. Kf3 {[%clk 00:00:21]} {[%emt 00:00:06]} Nd3 {[%clk
00:00:26]} {[%emt 00:00:04]} 47. Bd2 {[%clk 00:00:23]} {[%emt 00:00:03]} Kd5
{[%clk 00:00:00]} {[%emt 00:00:26]} 1-0

[Event "Kvibergspelen 2022"]
[Site "Kviberg Park Hotel & Conference, Krutvagen 2, Gothenburg, Sweden"]
[Date "2022.09.30"]
[Round "3.2"]
[White "Hillarp, Tiger"]
[Black "Bohman Karlholm, Adrian"]
[Result "1-0"]
[TimeControl "15 minutes + 5 seconds per move from move one (Round 1 - 4) / 90 minutes + 30 seconds per move from move one (Round 5 - 8)"]
[WhiteTitle "GM"]
[WhiteFideId "1700812"]
[BlackFideId "1720643"]
[WhiteElo "2511"]
[BlackElo "2117"]

1. Nf3 {[%clk 00:15:07]} {[%emt 00:00:02]} d5 {[%clk 00:15:09]} {[%emt
00:00:02]} 2. c4 {[%clk 00:15:10]} {[%emt 00:00:02]} dxc4 {[%clk 00:15:04]}
{[%emt 00:00:10]} 3. e3 {[%clk 00:15:14]} {[%emt 00:00:01]} Nf6 {[%clk
00:14:59]} {[%emt 00:00:10]} 4. Bxc4 {[%clk 00:15:17]} {[%emt 00:00:02]} e6
{[%clk 00:15:02]} {[%emt 00:00:02]} 5. d4 {[%clk 00:15:13]} {[%emt 00:00:09]}
c5 {[%clk 00:14:56]} {[%emt 00:00:10]} 6. dxc5 {[%clk 00:15:16]} {[%emt
00:00:03]} Qxd1+ {[%clk 00:14:57]} {[%emt 00:00:04]} 7. Kxd1 {[%clk 00:15:19]}
{[%emt 00:00:02]} Bxc5 {[%clk 00:15:00]} {[%emt 00:00:03]} 8. Ke2 {[%clk
00:15:10]} {[%emt 00:00:13]} Nc6 {[%clk 00:14:58]} {[%emt 00:00:07]} 9. a3
{[%clk 00:15:05]} {[%emt 00:00:10]} Bd7 {[%clk 00:14:24]} {[%emt 00:00:39]} 10.
b4 {[%clk 00:14:57]} {[%emt 00:00:13]} Be7 {[%clk 00:13:59]} {[%emt 00:00:30]}
11. Bb2 {[%clk 00:14:49]} {[%emt 00:00:13]} Rc8 {[%clk 00:13:21]} {[%emt
00:00:43]} 12. Nbd2 {[%clk 00:14:47]} {[%emt 00:00:07]} O-O {[%clk 00:13:12]}
{[%emt 00:00:14]} 13. Rhc1 {[%clk 00:14:15]} {[%emt 00:00:37]} a6 {[%clk
00:11:56]} {[%emt 00:01:22]} 14. Nb3 {[%clk 00:13:57]} {[%emt 00:00:23]} Ne4
{[%clk 00:11:08]} {[%emt 00:00:52]} 15. Bd3 {[%clk 00:13:56]} {[%emt 00:00:05]}
Nd6 {[%clk 00:10:15]} {[%emt 00:00:59]} 16. Nc5 {[%clk 00:13:50]} {[%emt
00:00:12]} Rfd8 {[%clk 00:10:00]} {[%emt 00:00:19]} 17. Nxd7 {[%clk 00:13:28]}
{[%emt 00:00:27]} Rxd7 {[%clk 00:10:02]} {[%emt 00:00:03]} 18. Rc2 {[%clk
00:12:59]} {[%emt 00:00:34]} Rdd8 {[%clk 00:08:57]} {[%emt 00:01:10]} 19. Rac1
{[%clk 00:12:46]} {[%emt 00:00:17]} Na7 {[%clk 00:08:39]} {[%emt 00:00:24]} 20.
g4 {[%clk 00:11:34]} {[%emt 00:01:17]} Rxc2+ {[%clk 00:08:18]} {[%emt
00:00:26]} 21. Rxc2 {[%clk 00:11:37]} {[%emt 00:00:02]} Rc8 {[%clk 00:08:10]}
{[%emt 00:00:14]} 22. Rxc8+ {[%clk 00:11:35]} {[%emt 00:00:07]} Naxc8 {[%clk
00:08:12]} {[%emt 00:00:02]} 23. Nd2 {[%clk 00:10:05]} {[%emt 00:01:35]} Nb6
{[%clk 00:07:46]} {[%emt 00:00:31]} 24. Bd4 {[%clk 00:09:46]} {[%emt 00:00:24]}
Nd5 {[%clk 00:06:57]} {[%emt 00:00:54]} 25. Nb3 {[%clk 00:06:56]} {[%emt
00:02:55]} Nc7 {[%clk 00:04:53]} {[%emt 00:02:09]} 26. Na5 {[%clk 00:05:57]}
{[%emt 00:01:04]} Ncb5 {[%clk 00:03:51]} {[%emt 00:01:08]} 27. Bb2 {[%clk
00:04:31]} {[%emt 00:01:30]} Bd8 {[%clk 00:03:53]} {[%emt 00:00:04]} 28. f4
{[%clk 00:03:55]} {[%emt 00:00:41]} f6 {[%clk 00:03:17]} {[%emt 00:00:41]} 29.
e4 {[%clk 00:03:35]} {[%emt 00:00:24]} Bxa5 {[%clk 00:03:11]} {[%emt 00:00:11]}
30. bxa5 {[%clk 00:03:38]} {[%emt 00:00:02]} Nc7 {[%clk 00:02:45]} {[%emt
00:00:31]} 31. e5 {[%clk 00:03:34]} {[%emt 00:00:08]} fxe5 {[%clk 00:02:27]}
{[%emt 00:00:24]} 32. Bxe5 {[%clk 00:03:37]} {[%emt 00:00:01]} Nce8 {[%clk
00:02:01]} {[%emt 00:00:32]} 33. Ke3 {[%clk 00:03:27]} {[%emt 00:00:14]} g6
{[%clk 00:01:53]} {[%emt 00:00:14]} 34. Kd4 {[%clk 00:03:14]} {[%emt 00:00:18]}
Kf7 {[%clk 00:01:49]} {[%emt 00:00:08]} 35. Kc5 {[%clk 00:03:02]} {[%emt
00:00:17]} Ke7 {[%clk 00:01:53]} {[%emt 00:00:02]} 36. h4 {[%clk 00:02:56]}
{[%emt 00:00:11]} Kd7 {[%clk 00:01:38]} {[%emt 00:00:21]} 37. Bc2 {[%clk
00:02:04]} {[%emt 00:00:57]} Ke7 {[%clk 00:01:14]} {[%emt 00:00:28]} 38. Kb6
{[%clk 00:01:11]} {[%emt 00:00:58]} Nc4+ {[%clk 00:00:36]} {[%emt 00:00:43]} 39.
Kxb7 {[%clk 00:01:10]} {[%emt 00:00:06]} Nxa5+ {[%clk 00:00:38]} {[%emt
00:00:04]} 40. Kxa6 {[%clk 00:01:07]} {[%emt 00:00:08]} Nc6 {[%clk 00:00:18]}
{[%emt 00:00:24]} 41. Kb6 {[%clk 00:01:02]} {[%emt 00:00:09]} Nxe5 {[%clk
00:00:09]} {[%emt 00:00:15]} 42. fxe5 {[%clk 00:01:06]} {[%emt 00:00:02]} Kd8
{[%clk 00:00:10]} {[%emt 00:00:04]} 43. Kc6 {[%clk 00:01:06]} {[%emt 00:00:04]}
Nc7 {[%clk 00:00:09]} {[%emt 00:00:06]} 44. Kd6 {[%clk 00:01:08]} {[%emt
00:00:02]} 1-0